[Event "Tata Steel-B 80th"]
[Site "Wijk aan Zee"]
[Date "2018.01.26"]
[Round "11"]
[White "Vidit, Santosh Gujrathi"]
[Black "Korobov, Anton"]
[Result "1/2-1/2"]
[ECO "B52"]
[WhiteElo "2718"]
[BlackElo "2652"]
[Annotator "Fernandez,D"]
[PlyCount "61"]
[EventDate "2018.01.13"]
[EventType "tourn"]
[EventRounds "13"]
[EventCountry "NED"]
[EventCategory "15"]
[SourceTitle "CBM 183"]
[Source "ChessBase"]
[SourceDate "2018.03.14"]
[SourceVersion "1"]
[SourceVersionDate "2018.03.14"]
[SourceQuality "1"]
[TimeControl "40/6000+30:20/3000+30:900+30"]

1. e4 {[%emt 0:00:05]} c5 {[%emt 0:00:14]} 2. Nf3 {[%emt 0:00:12]} d6 {[%emt 0:
00:07]} 3. Bb5+ {[%emt 0:00:19]} Bd7 {[%emt 0:00:34]} 4. Bxd7+ {[%emt 0:00:17]}
Nxd7 {[%emt 0:00:12] Less popular than the queen recapture, though it is not
clear to me quite why.} 5. O-O {[%emt 0:00:18]} Ngf6 {[%emt 0:00:07]} (5... g6
{was the move I tried in one outing against one of the players currently in
Wijk:} 6. c3 Ngf6 7. Re1 Ne5 $6 {A typical idea, but White is not obliged to
take by any means! My opponent achieved an advantage but then lost it at some
later point:} 8. d4 cxd4 9. cxd4 Nxf3+ 10. Qxf3 Bg7 11. e5 dxe5 12. dxe5 Nd5
13. Rd1 e6 14. Nc3 O-O 15. Nxd5 exd5 16. Rxd5 Qb6 17. h4 $6 Rad8 $11 {Jones,
G-Fernandez,D London 2016}) 6. Qe2 {[%emt 0:00:15]} (6. Re1 e6 7. c3 Be7 8. d4
O-O 9. Bg5 h6 10. Bxf6 Bxf6 11. Na3 cxd4 12. cxd4 Nb6 $11 {Vachier Lagrave,
M-Nakamura,H Palma de Mallorca 2017, failed to achieve anything much.}) 6...
Qc7 {[%emt 0:01:35]} (6... Rc8 7. c3 e6 8. d4 cxd4 9. cxd4 d5 10. e5 Ne4 11.
Be3 Nb6 12. Ne1 f5 13. f3 Ng5 14. b3 Nf7 15. Nd3 Nd7 16. Nd2 Be7 17. Rac1 O-O
18. Rxc8 Qxc8 19. Rc1 Qb8 20. Nf4 Re8 21. g4 fxg4 22. fxg4 Bg5 23. Nd3 Bxe3+
24. Qxe3 Nd8 25. Nf4 Nc6 26. Nf3 Qd8 27. Rf1 Qe7 28. h4 Nf8 29. Rf2 Rc8 30. Kg2
{1/2-1/2 (30) Mamedov,R (2680)-Ivanchuk,V (2729) Kocaeli 2017}) 7. Rd1 {
[%emt 0:04:23]} (7. c3 {is main and we can only assume from his later play
that Black wanted} e6 8. d4 Be7 $11 {or similar, with a fairly solid position
and completion of development one move away for both sides.}) 7... e6 {[%emt 0:
03:38]} 8. d4 {[%emt 0:00:26]} (8. c4 $5 {was the logical way to implement a
'light square only' pawn structure. To avoid being slightly worse, Black has
to make a tough strategic call between ...e5 and ...Ne5.}) 8... cxd4 {[%emt 0:
00:53]} 9. Nxd4 {[%emt 0:00:03]} (9. Rxd4 $5 {merited consideration, still
trying to set up with c4, e.g.} Rc8 10. Na3 Be7 11. Rc4 Qb8 12. Rxc8+ Qxc8 13.
c4 $132) 9... Rc8 {[%emt 0:01:07] A nice point. Now White would really rather
not play Nc3, so his options are limited.} 10. Nb5 {[%emt 0:14:33]} (10. b3 $5
{This leads to the setup White wanted, he just has to see that ...e5 is not
favourable.} a6 (10... e5 11. Nb5 Qxc2 12. Qxc2 Rxc2 13. N1a3 $14) 11. c4 Be7
12. Bb2 $11) 10... Qxc2 {[%emt 0:10:43]} 11. Qxc2 {[%emt 0:04:16]} Rxc2 {
[%emt 0:00:23]} 12. N1a3 {[%emt 0:01:32]} Rc8 {[%emt 0:02:32]} 13. Nxa7 {
[%emt 0:00:59]} Rd8 {[%emt 0:00:12]} 14. N7b5 {[%emt 0:08:58]} (14. f3 d5 $17)
14... Nxe4 {[%emt 0:02:56]} 15. f3 {[%emt 0:04:13]} Nef6 {[%emt 0:00:29]} 16.
Nxd6+ {[%emt 0:02:09]} Bxd6 {[%emt 0:00:24]} 17. Rxd6 {[%emt 0:00:01]} Ke7 {
[%emt 0:02:41]} 18. Rd4 {[%emt 0:14:34]} Ne5 {[%emt 0:05:21]} 19. Be3 {[%emt 0:
00:51]} Nc6 {[%emt 0:06:05]} (19... Nd5 {is a bit more ambitious; Black's
minor pieces are probably slightly better placed so he should think about
fighting for an advantage.}) 20. Rxd8 {[%emt 0:02:48]} Rxd8 {[%emt 0:00:11]}
21. Bc5+ {[%emt 0:04:35]} Kd7 {[%emt 0:00:57]} 22. Nc4 {[%emt 0:05:54]} Nd5 {
[%emt 0:02:13]} 23. a4 {[%emt 0:02:19] Whereas in this version, White' bishop
has become active so although Black may still be optically for choice, there
decidedly isn't an edge unless White messes up.} e5 {[%emt 0:08:33]} 24. a5 {
[%emt 0:16:24]} Ke6 {[%emt 0:02:22]} (24... f6 {is more patient and keeps open
knight re-routings starting with ...Nc7, but should objectively also be
nothing.}) 25. a6 {[%emt 0:01:10]} bxa6 {[%emt 0:02:47]} 26. Rxa6 {[%emt 0:00:
04]} Kd7 {[%emt 0:00:04]} 27. b4 {[%emt 0:07:20] A final simplifying
combination.} Ndxb4 {[%emt 0:01:58]} 28. Bxb4 {[%emt 0:02:33]} Nxb4 {[%emt 0:
00:06]} 29. Rd6+ {[%emt 0:01:11]} Ke7 {[%emt 0:00:17]} 30. Rxd8 {[%emt 0:00:01]
} Kxd8 {[%emt 0:00:08]} 31. Nxe5 {[%emt 0:00:02]} 1/2-1/2

[Event "Belgrade RAD 30"]
[Site "Belgrade"]
[Date "1977.01.20"]
[Round "5.6"]
[White "Sax, Gyula"]
[Black "Weinstein, Norman"]
[Result "1/2-1/2"]
[ECO "B52"]
[WhiteElo "2565"]
[BlackElo "2475"]
[Annotator "Primel,D"]
[PlyCount "38"]
[EventDate "1977.01.15"]
[EventType "tourn"]
[EventRounds "13"]
[EventCountry "SRB"]
[EventCategory "9"]
[SourceTitle "EXT 2018"]
[Source "ChessBase"]
[SourceDate "2017.10.13"]
[SourceVersion "1"]
[SourceVersionDate "2017.10.13"]
[SourceQuality "1"]
[TimeControl "40/9000:16/5400:0"]

1. e4 c5 2. Nf3 d6 3. Bb5+ Bd7 4. Bxd7+ Qxd7 5. O-O Nf6 6. e5 (6. Re1) (6. Qe2)
6... dxe5 7. Nxe5 Qc8 (7... Qc7) 8. Qf3 e6 9. Nc3 Be7 10. d3 O-O 11. Bf4 Nbd7 (
11... Nfd7 $142 12. Qg3) 12. Nc4 Nb6 13. Nd6 Bxd6 14. Bxd6 Re8 15. a4 Nbd5 16.
Ne4 Rd8 17. Nxf6+ Nxf6 18. Be5 Ne8 19. Rfe1 (19. a5) 19... f6 1/2-1/2